fUST/lending_fUST_20250809
["ID","MTS","AMOUNT","RATE_DAILY","PERIOD"]
[378138009,1754742645752,-1364.56,0.00022191,2]
[378138010,1754742645762,-460.0,0.00022191,2]
[378138011,1754742645771,-460.0,0.00022191,2]
[378138012,1754742645780,-460.0,0.00022191,2]
[378138013,1754742645790,-460.0,0.00022191,2]
[378138014,1754742645799,-460.0,0.00022191,2]
[378138015,1754742645808,-460.0,0.00022191,2]
[378138016,1754742645818,-460.0,0.00022191,2]
[378138017,1754742645827,-460.0,0.00022191,2]
[378138018,1754742645836,-460.0,0.00022191,2]
[378138019,1754742645845,-460.0,0.00022191,2]
[378138021,1754742645854,-11105.06856481,0.000222,2]
[378138022,1754742645864,-328.59658136,0.00022357,2]
[378138024,1754742645873,-460.0,0.00022464,2]
[378138026,1754742645882,-460.0,0.00022464,2]
[378138028,1754742645891,-460.0,0.00022464,2]
[378138030,1754742645901,-460.0,0.00022464,2]
[378138032,1754742645910,-460.0,0.00022464,2]
[378138034,1754742645919,-460.0,0.00022464,2]
[378138036,1754742645929,-460.0,0.00022464,2]
[378138038,1754742645939,-460.0,0.00022464,2]
[378138040,1754742645948,-460.0,0.00022464,2]
[378138042,1754742645957,-460.0,0.00022464,2]
[378138044,1754742645966,-460.0,0.00022464,2]
[378138046,1754742645975,-464.23361462,0.00022464,2]
[378138048,1754742645985,-460.0,0.00022464,2]
[378138049,1754742645994,-460.0,0.00022464,2]
[378138051,1754742646003,-460.0,0.00022464,2]
[378138053,1754742646013,-460.0,0.00022464,2]
[378138055,1754742646022,-460.0,0.00022464,2]
[378138057,1754742646031,-460.0,0.00022464,2]
[378138059,1754742646041,-460.0,0.00022464,2]
[378138061,1754742646060,-460.0,0.00022464,2]
[378138063,1754742646074,-460.0,0.00022465,2]
[378138065,1754742646084,-460.0,0.00022465,2]
[378138067,1754742646094,-460.0,0.00022465,2]
[378138069,1754742646103,-466.99,0.00022465,2]
[378138071,1754742646113,-460.0,0.00022465,2]
[378138073,1754742646123,-470.77,0.00022465,2]
[378138074,1754742646132,-460.0,0.00022465,2]
[378138076,1754742646143,-460.0,0.00022465,2]
[378138077,1754742646153,-460.0,0.00022465,2]
[378138078,1754742646163,-460.0,0.00022465,2]
[378138079,1754742646173,-518.45,0.00022465,2]
[378138080,1754742646182,-460.0,0.00022465,2]
[378138081,1754742646192,-460.0,0.00022465,2]
[378138082,1754742646201,-460.0,0.00022465,2]
[378138083,1754742646211,-460.0,0.00022465,2]
[378138084,1754742646220,-165.92370016,0.00022465,2]
[378138085,1754742646230,-460.0,0.00022465,2]
[378138087,1754742646239,-460.0,0.00022465,2]
[378138090,1754742646249,-460.0,0.00022465,2]
[378138092,1754742646258,-460.0,0.00022465,2]
[378138093,1754742646268,-460.0,0.00022465,2]
[378138096,1754742646277,-460.0,0.00022465,2]
[378138097,1754742646287,-460.0,0.00022465,2]
[378138100,1754742646299,-478.62324653,0.00022465,2]
[378138102,1754742646308,-704.44,0.00022465,2]
[378138103,1754742646318,-605.94184777,0.00022465,2]
[378138105,1754742646327,-460.0,0.00022465,2]
[378138107,1754742646336,-460.0,0.00022465,2]
[378138109,1754742646345,-460.0,0.00022465,2]
[378138111,1754742646355,-460.0,0.00022465,2]
[378138113,1754742646364,-460.0,0.00022465,2]
[378138115,1754742646373,-532.81,0.00022465,2]
[378138118,1754742646384,-460.0,0.00022465,2]
[378138119,1754742646394,-460.0,0.00022465,2]
[378138120,1754742646403,-460.0,0.00022465,2]
[378138121,1754742646413,-460.0,0.00022465,2]
[378138122,1754742646422,-460.0,0.00022465,2]
[378138123,1754742646432,-460.0,0.00022465,2]
[378138124,1754742646441,-560.29,0.00022465,2]
[378138125,1754742646451,-460.0,0.00022465,2]
[378138126,1754742646460,-460.0,0.00022465,2]
[378138127,1754742646470,-602.1587486,0.00022465,2]
[378138128,1754742646479,-477.39947064,0.00022465,2]
[378138129,1754742646489,-460.0,0.00022465,2]
[378138130,1754742646498,-520.71,0.00022465,2]
[378138131,1754742646507,-460.0,0.00022465,2]
[378138132,1754742646517,-460.0,0.00022465,2]
[378138133,1754742646526,-2664.05,0.00022465,2]
[378138134,1754742646536,-929.99,0.00022465,2]
[378138135,1754742646546,-460.0,0.00022465,2]
[378138136,1754742646555,-460.0,0.00022465,2]
[378138137,1754742646565,-460.0,0.00022465,2]
[378138138,1754742646575,-1074.79,0.00022465,2]
[378138139,1754742646585,-1736.44,0.00022465,2]
[378138140,1754742646595,-460.0,0.00022465,2]
[378138141,1754742646604,-1176.97,0.00022465,2]
[378138142,1754742646613,-460.0,0.00022465,2]
[378138143,1754742646623,-460.0,0.00022465,2]
[378138144,1754742646633,-460.0,0.00022465,2]
[378138145,1754742646643,-460.0,0.00022465,2]
[378138146,1754742646652,-460.0,0.00022465,2]
[378138147,1754742646663,-460.0,0.00022465,2]
[378138148,1754742646673,-558.13,0.00022465,2]
[378138149,1754742646682,-785.66,0.00022465,2]
[378138150,1754742646692,-460.0,0.00022465,2]
[378138151,1754742646703,-460.0,0.00022465,2]
[378138152,1754742646713,-460.0,0.00022465,2]
[378138153,1754742646724,-1673.09,0.00022465,2]
[378138154,1754742646733,-460.0,0.00022465,2]
[378138155,1754742646742,-463.80486982,0.00022465,2]
[378138156,1754742646752,-503.64386285,0.00022465,2]
[378138157,1754742646761,-222.83713547,0.00022465,2]
[378138158,1754742646771,-467.08880345,0.00022465,2]
[378138159,1754742646780,-460.0,0.00022465,2]
[378138160,1754742646789,-460.0,0.00022465,2]
[378138161,1754742646799,-460.0,0.00022465,2]
[378138162,1754742646808,-460.0,0.00022465,2]
[378138163,1754742646818,-460.0,0.00022465,2]
[378138164,1754742646828,-460.0,0.00022465,2]
[378138165,1754742646839,-460.0,0.00022465,2]
[378138166,1754742646854,-2240.9,0.00022465,2]
[378138167,1754742646864,-460.0,0.00022465,2]
[378138168,1754742646874,-546.1,0.00022465,2]
[378138169,1754742646884,-460.0,0.00022465,2]
[378138170,1754742646893,-460.0,0.00022465,2]
[378138171,1754742646903,-460.0,0.00022465,2]
[378138172,1754742646912,-460.0,0.00022465,2]
[378138173,1754742646923,-460.0,0.00022465,2]
[378138174,1754742646932,-500.0,0.00022465,2]
[378138175,1754742646942,-460.0,0.00022465,2]
[378138176,1754742646951,-1151.83,0.00022465,2]
[378138177,1754742646960,-721.63,0.00022465,2]
[378138178,1754742646970,-460.0,0.00022465,2]
[378138179,1754742646979,-460.0,0.00022465,2]
[378138180,1754742646989,-1309.53,0.00022465,2]
[378138181,1754742646999,-460.0,0.00022465,2]
[378138182,1754742647008,-460.0,0.00022465,2]
[378138183,1754742647018,-627.83,0.00022465,2]
[378138184,1754742647028,-586.05728987,0.00022465,2]
[378138185,1754742647038,-460.0,0.00022465,2]
[378138186,1754742647047,-460.0,0.00022465,2]
[378138187,1754742647057,-460.0,0.00022465,2]
[378138188,1754742647066,-460.0,0.00022465,2]
[378138189,1754742647079,-672.34,0.00022465,2]
[378138190,1754742647089,-678.31,0.00022465,2]
[378138191,1754742647098,-1279.21,0.00022465,2]
[378138192,1754742647108,-470.94,0.00022465,2]
[378138193,1754742647118,-460.0,0.00022465,2]
[378138194,1754742647127,-1295.76,0.00022465,2]
[378138195,1754742647137,-460.0,0.00022465,2]
[378138196,1754742647150,-460.0,0.00022465,2]
[378138197,1754742647160,-477.06,0.00022465,2]
[378138198,1754742647169,-460.0,0.00022465,2]
[378138199,1754742647179,-460.0,0.00022465,2]
[378138200,1754742647190,-460.0,0.00022465,2]
[378138201,1754742647199,-460.0,0.00022465,2]
[378138202,1754742647209,-747.03,0.00022465,2]
[378138203,1754742647218,-497.75,0.00022465,2]
[378138204,1754742647227,-788.62,0.00022465,2]
[378138205,1754742647238,-460.0,0.00022465,2]
[378138206,1754742647248,-460.0,0.00022465,2]
[378138207,1754742647261,-460.0,0.00022465,2]
[378138208,1754742647271,-582.31,0.00022465,2]
[378138209,1754742647280,-581.48,0.00022465,2]
[378138210,1754742647291,-460.0,0.00022465,2]
[378138211,1754742647300,-464.37921717,0.00022465,2]
[378138212,1754742647311,-460.0,0.00022465,2]
[378138213,1754742647320,-609.52,0.00022465,2]
[378138214,1754742647330,-1364.56,0.00022465,2]
[378138215,1754742647340,-460.0,0.00022465,2]
[378138216,1754742647349,-460.0,0.00022465,2]
[378138217,1754742647358,-460.0,0.00022465,2]
[378138218,1754742647368,-460.0,0.00022465,2]
[378138219,1754742647378,-461.07573452,0.00022465,2]
[378138220,1754742647387,-500.0,0.00022473,2]
[378138221,1754742647397,-582.8001158,0.00022473,2]
[378138222,1754742647406,-295.22955353,0.00022473,2]
[378138223,1754742647416,-500.0,0.00022473,2]
[378138224,1754742647432,-1010.50068306,0.000225,2]
[378138225,1754742647448,-500.0,0.00022521,2]
[378138226,1754742647458,-527.77735381,0.00022592,2]
[378138227,1754742647468,-160.0,0.00022592,2]
[378138228,1754742647478,-160.0,0.00022592,2]
[378138229,1754742647488,-160.0,0.00022592,2]
[378138230,1754742647497,-461.55179734,0.00022592,2]
[378138231,1754742647507,-312.16666667,0.00022592,2]
[378138232,1754742647517,-231.92402426,0.00022592,2]
[378138233,1754742647526,-215.40758176,0.00022592,2]
[378138234,1754742647536,-160.0,0.00022592,2]
[378138235,1754742647546,-216.61183532,0.00022592,2]
[378138236,1754742647556,-160.0,0.00022592,2]
[378138237,1754742647566,-12666.14847857,0.00022593,2]
[378138238,1754742647578,-842.95011917,0.00022596,2]
[378138239,1754742647602,-328.59658136,0.00022627,2]
[378138240,1754742647615,-9465.30265603,0.000227,2]
[378138241,1754742647625,-1000.0,0.00022721,2]
[378138242,1754742647635,-500.0,0.00022721,2]
[378138243,1754742647646,-500.0,0.00022721,2]
[378138244,1754742647656,-153.0,0.00022722,2]
[378138245,1754742647666,-460.0,0.00022738,2]
[378138246,1754742647676,-460.0,0.00022738,2]
[378138247,1754742647686,-460.0,0.00022738,2]
[378138248,1754742647696,-460.0,0.00022739,2]
[378138249,1754742647705,-474.24,0.00022739,2]
[378138250,1754742647715,-466.99,0.00022739,2]
[378138251,1754742647726,-460.0,0.00022739,2]
[378138252,1754742647736,-470.77,0.00022739,2]
[378138253,1754742647746,-460.0,0.00022739,2]
[378138254,1754742647756,-460.0,0.00022739,2]
[378138255,1754742647766,-460.0,0.00022739,2]
[378138256,1754742647775,-518.45,0.00022739,2]
[378138257,1754742647786,-460.0,0.00022739,2]
[378138258,1754742647796,-460.0,0.00022739,2]
[378138259,1754742647806,-460.0,0.00022739,2]
[378138260,1754742647816,-460.0,0.00022739,2]
[378138261,1754742647826,-460.0,0.00022739,2]
[378138262,1754742647836,-460.0,0.00022739,2]
[378138263,1754742647846,-704.44,0.00022739,2]
[378138264,1754742647857,-460.0,0.00022739,2]
[378138265,1754742647867,-460.0,0.00022739,2]
[378138266,1754742647877,-460.0,0.00022739,2]
[378138267,1754742647886,-254.7,0.00022739,2]
[378138268,1754742647896,-465.84135215,0.00022739,2]
[378138269,1754742647906,-460.0,0.00022739,2]
[378138270,1754742647916,-460.0,0.00022739,2]
[378138271,1754742647927,-560.29,0.00022739,2]
[378138272,1754742647937,-460.0,0.00022739,2]
[378138273,1754742647947,-460.0,0.00022739,2]
[378138274,1754742647956,-520.71,0.00022739,2]
[378138275,1754742647965,-460.0,0.00022739,2]
[378138276,1754742647975,-460.0,0.00022739,2]
[378138277,1754742647984,-2664.05,0.00022739,2]
[378138278,1754742647994,-929.99,0.00022739,2]
[378138279,1754742648004,-460.0,0.00022739,2]
[378138280,1754742648015,-1074.79,0.00022739,2]
[378138281,1754742648025,-1736.44,0.00022739,2]
[378138282,1754742648035,-1176.97,0.00022739,2]
[378138283,1754742648046,-460.0,0.00022739,2]
[378138284,1754742648058,-460.0,0.00022739,2]
[378138285,1754742648069,-460.0,0.00022739,2]
[378138286,1754742648083,-460.0,0.00022739,2]
[378138287,1754742648093,-558.13,0.00022739,2]
[378138288,1754742648105,-785.66,0.00022739,2]
[378138289,1754742648117,-460.0,0.00022739,2]
[378138290,1754742648127,-569.90328227,0.00022739,2]
[378138291,1754742648137,-1673.09,0.00022739,2]
[378138292,1754742648147,-460.0,0.00022739,2]
[378138293,1754742648159,-460.0,0.00022739,2]
[378138294,1754742648169,-408.94351519,0.00022739,2]
[378138295,1754742648183,-607.69,0.00022739,2]
[378138296,1754742648193,-460.0,0.00022739,2]
[378138297,1754742648203,-460.0,0.00022739,2]
[378138298,1754742648213,-2240.9,0.00022739,2]
[378138299,1754742648223,-460.0,0.00022739,2]
[378138300,1754742648232,-546.1,0.00022739,2]
[378138301,1754742648242,-460.0,0.00022739,2]
[378138302,1754742648253,-460.0,0.00022739,2]
[378138303,1754742648263,-460.0,0.00022739,2]
[378138304,1754742648273,-460.0,0.00022739,2]
[378138305,1754742648283,-460.0,0.00022739,2]
[378138306,1754742648293,-1151.83,0.00022739,2]
[378138307,1754742648303,-721.63,0.00022739,2]
[378138308,1754742648313,-460.0,0.00022739,2]
[378138309,1754742648323,-460.0,0.00022739,2]
[378138310,1754742648333,-1309.53,0.00022739,2]
[378138311,1754742648471,-460.0,0.00022739,2]
[378138312,1754742648482,-460.0,0.00022739,2]
[378138313,1754742648491,-627.83,0.00022739,2]
[378138314,1754742648501,-460.0,0.00022739,2]
[378138315,1754742648510,-460.0,0.00022739,2]
[378138316,1754742648520,-460.0,0.00022739,2]
[378138317,1754742648529,-672.34,0.00022739,2]
[378138318,1754742648539,-678.31,0.00022739,2]
[378138319,1754742648549,-1279.21,0.00022739,2]
[378138320,1754742648558,-470.94,0.00022739,2]
[378138321,1754742648568,-1295.76,0.00022739,2]
[378138322,1754742648578,-460.0,0.00022739,2]
[378138323,1754742648588,-477.06,0.00022739,2]
[378138324,1754742648597,-460.0,0.00022739,2]
[378138325,1754742648607,-460.0,0.00022739,2]
[378138326,1754742648617,-460.0,0.00022739,2]
[378138327,1754742648627,-747.03,0.00022739,2]
[378138328,1754742648636,-497.75,0.00022739,2]
[378138329,1754742648646,-788.62,0.00022739,2]
[378138330,1754742648655,-460.0,0.00022739,2]
[378138331,1754742648665,-460.0,0.00022739,2]
[378138332,1754742648675,-460.0,0.00022739,2]
[378138333,1754742648684,-582.31,0.00022739,2]
[378138334,1754742648694,-581.48,0.00022739,2]
[378138335,1754742648704,-609.52,0.00022739,2]
[378138336,1754742648714,-1364.56,0.00022739,2]
[378138337,1754742648723,-460.0,0.00022739,2]
[378138338,1754742648733,-460.0,0.00022739,2]
[378138339,1754742648743,-460.0,0.00022739,2]
[378138340,1754742648752,-460.0,0.00022739,2]
[378138341,1754742648761,-6001.81160003,0.00022878,2]
[378138342,1754742648771,-328.59658136,0.00022897,2]
[378138343,1754742648781,-500.0,0.00022973,2]
[378138344,1754742648791,-150.0,0.00022973,2]
[378138345,1754742648801,-155.47774934,0.00022973,2]
[378138346,1754742648810,-438.4173292,0.00022973,2]
[378138347,1754742648820,-500.0,0.00022973,2]
[378138348,1754742648829,-500.0,0.00022973,2]
[378138349,1754742648839,-500.0,0.00022973,2]
[378138350,1754742648848,-493.45445701,0.00022973,2]
[378138351,1754742648858,-100000.0,0.0002299,2]
[378138352,1754742648868,-5000.0,0.00022997,2]
[378138353,1754742648877,-160.0,0.00023,2]
[378138354,1754742648887,-460.0,0.00023012,2]
[378138355,1754742648896,-460.0,0.00023012,2]
[378138356,1754742648906,-460.0,0.00023013,2]
[378138357,1754742648915,-466.99,0.00023013,2]
[378138358,1754742648924,-460.0,0.00023013,2]
[378138359,1754742648934,-470.77,0.00023013,2]
[378138360,1754742648943,-460.0,0.00023013,2]
[378138361,1754742648954,-460.0,0.00023013,2]
[378138362,1754742648963,-460.0,0.00023013,2]
[378138363,1754742648973,-518.45,0.00023013,2]
[378138364,1754742648982,-460.0,0.00023013,2]
[378138365,1754742648992,-460.0,0.00023013,2]
[378138366,1754742649001,-480.38313579,0.00023013,2]
[378138367,1754742649010,-460.0,0.00023013,2]
[378138368,1754742649020,-460.0,0.00023013,2]
[378138369,1754742649029,-704.44,0.00023013,2]
[378138370,1754742649039,-460.0,0.00023013,2]
[378138371,1754742649049,-460.0,0.00023013,2]
[378138372,1754742649058,-460.0,0.00023013,2]
[378138373,1754742649069,-560.29,0.00023013,2]
[378138374,1754742649082,-520.71,0.00023013,2]
[378138375,1754742649092,-460.0,0.00023013,2]
[378138376,1754742649101,-2664.05,0.00023013,2]
[378138377,1754742649111,-929.99,0.00023013,2]
[378138378,1754742649121,-460.0,0.00023013,2]
[378138379,1754742649130,-1074.79,0.00023013,2]
[378138380,1754742649140,-1736.44,0.00023013,2]
[378138381,1754742649150,-1176.97,0.00023013,2]
[378138382,1754742649160,-460.0,0.00023013,2]
[378138383,1754742649170,-460.0,0.00023013,2]
[378138384,1754742649180,-558.13,0.00023013,2]
[378138385,1754742649191,-785.66,0.00023013,2]
[378138386,1754742649201,-460.0,0.00023013,2]
[378138387,1754742649211,-1673.09,0.00023013,2]
[378138388,1754742649221,-460.0,0.00023013,2]
[378138389,1754742649230,-460.0,0.00023013,2]
[378138390,1754742649239,-460.0,0.00023013,2]
[378138391,1754742649250,-2240.9,0.00023013,2]
[378138392,1754742649259,-460.0,0.00023013,2]
[378138393,1754742649268,-546.1,0.00023013,2]
[378138394,1754742649278,-460.0,0.00023013,2]
[378138395,1754742649288,-460.0,0.00023013,2]
[378138396,1754742649297,-460.0,0.00023013,2]
[378138397,1754742649307,-1151.83,0.00023013,2]
[378138398,1754742649316,-721.63,0.00023013,2]
[378138399,1754742649326,-460.0,0.00023013,2]
[378138400,1754742649336,-460.0,0.00023013,2]
[378138401,1754742649345,-1309.53,0.00023013,2]
[378138402,1754742649355,-460.0,0.00023013,2]
[378138403,1754742649365,-460.0,0.00023013,2]
[378138404,1754742649375,-627.83,0.00023013,2]
[378138405,1754742649384,-460.0,0.00023013,2]
[378138406,1754742649393,-460.0,0.00023013,2]
[378138407,1754742649402,-460.0,0.00023013,2]
[378138408,1754742649412,-672.34,0.00023013,2]
[378138409,1754742649421,-1279.21,0.00023013,2]
[378138410,1754742649431,-678.31,0.00023013,2]
[378138411,1754742649440,-470.94,0.00023013,2]
[378138412,1754742649449,-1295.76,0.00023013,2]
[378138413,1754742649458,-460.0,0.00023013,2]
[378138414,1754742649467,-477.06,0.00023013,2]
[378138415,1754742649477,-460.0,0.00023013,2]
[378138416,1754742649486,-460.0,0.00023013,2]
[378138417,1754742649495,-747.03,0.00023013,2]
[378138418,1754742649505,-497.75,0.00023013,2]
[378138419,1754742649515,-788.62,0.00023013,2]
[378138420,1754742649524,-460.0,0.00023013,2]
[378138421,1754742649533,-460.0,0.00023013,2]
[378138422,1754742649543,-582.31,0.00023013,2]
[378138423,1754742649552,-581.48,0.00023013,2]
[378138424,1754742649561,-609.52,0.00023013,2]
[378138425,1754742649571,-1364.56,0.00023013,2]
[378138426,1754742649580,-460.0,0.00023013,2]
[378138427,1754742649590,-180.48,0.00023013,2]
[378138428,1754742649600,-1001.64517611,0.00023021,2]
[378138429,1754742649610,-1000.0,0.00023021,2]
[378138430,1754742649620,-151.0,0.00023156,2]
[378138431,1754742649630,-151.0,0.00023156,2]
[378138432,1754742649639,-151.0,0.00023156,2]
[378138433,1754742649649,-933.94,0.0002321,2]
[378138434,1754742649658,-1500.0,0.00023268,2]
[378138435,1754742649668,-460.0,0.00023286,2]
[378138436,1754742649678,-279.785063,0.00023287,7]
[378138437,1754742649687,-279.785063,0.00023287,7]
[378138438,1754742649696,-460.0,0.00023287,2]
[378138439,1754742649706,-466.99,0.00023287,2]
[378138440,1754742649715,-460.0,0.00023287,2]
[378138441,1754742649724,-470.77,0.00023287,2]
[378138442,1754742649734,-460.0,0.00023287,2]
[378138443,1754742649743,-460.0,0.00023287,2]
[378138444,1754742649753,-430.7584403,0.00023287,2]
[378138445,1754742649763,-518.45,0.00023287,2]
[378138446,1754742649772,-460.0,0.00023287,2]
[378138447,1754742649782,-460.0,0.00023287,2]
[378138448,1754742649792,-704.44,0.00023287,2]
[378138449,1754742649801,-460.0,0.00023287,2]
[378138450,1754742649810,-460.0,0.00023287,2]
[378138451,1754742649819,-460.0,0.00023287,2]
[378138452,1754742649829,-560.29,0.00023287,2]
[378138453,1754742649838,-520.71,0.00023287,2]
[378138454,1754742649848,-460.0,0.00023287,2]
[378138455,1754742649857,-2664.05,0.00023287,2]
[378138456,1754742649867,-929.99,0.00023287,2]
[378138457,1754742649876,-460.0,0.00023287,2]
[378138458,1754742649885,-1074.79,0.00023287,2]
[378138459,1754742649895,-1736.44,0.00023287,2]
[378138460,1754742649904,-1176.97,0.00023287,2]
[378138461,1754742649914,-460.0,0.00023287,2]
[378138462,1754742649924,-460.0,0.00023287,2]
[378138463,1754742649933,-558.13,0.00023287,2]
[378138464,1754742649943,-785.66,0.00023287,2]
[378138465,1754742649953,-460.0,0.00023287,2]
[378138466,1754742649962,-1673.09,0.00023287,2]
[378138467,1754742649972,-460.0,0.00023287,2]
[378138468,1754742649981,-460.0,0.00023287,2]
[378138469,1754742649991,-2240.9,0.00023287,2]
[378138470,1754742650001,-460.0,0.00023287,2]
[378138471,1754742650010,-546.1,0.00023287,2]
[378138472,1754742650019,-460.0,0.00023287,2]
[378138473,1754742650030,-460.0,0.00023287,2]
[378138474,1754742650039,-1151.83,0.00023287,2]
[378138475,1754742650049,-721.63,0.00023287,2]
[378138476,1754742650059,-460.0,0.00023287,2]
[378138477,1754742650069,-1309.53,0.00023287,2]
[378138478,1754742650083,-460.0,0.00023287,2]
[378138479,1754742650092,-460.0,0.00023287,2]
[378138480,1754742650101,-627.83,0.00023287,2]
[378138481,1754742650110,-460.0,0.00023287,2]
[378138482,1754742650120,-460.0,0.00023287,2]
[378138483,1754742650129,-460.0,0.00023287,2]
[378138484,1754742650138,-672.34,0.00023287,2]
[378138485,1754742650148,-1279.21,0.00023287,2]
[378138486,1754742650157,-678.31,0.00023287,2]
[378138487,1754742650167,-470.94,0.00023287,2]
[378138488,1754742650178,-1295.76,0.00023287,2]
[378138489,1754742650188,-460.0,0.00023287,2]
[378138490,1754742650198,-477.06,0.00023287,2]
[378138491,1754742650207,-460.0,0.00023287,2]
[378138492,1754742650217,-460.0,0.00023287,2]
[378138493,1754742650226,-747.03,0.00023287,2]
[378138494,1754742650235,-497.75,0.00023287,2]
[378138495,1754742650245,-788.62,0.00023287,2]
[378138496,1754742650254,-460.0,0.00023287,2]
[378138497,1754742650263,-460.0,0.00023287,2]
[378138498,1754742650273,-582.31,0.00023287,2]
[378138499,1754742650282,-581.48,0.00023287,2]
[378138500,1754742650291,-609.52,0.00023287,2]
[378138501,1754742650302,-1364.56,0.00023287,2]
[378138502,1754742650311,-460.0,0.00023287,2]
[378138503,1754742650320,-500.0,0.00023288,2]
[378138504,1754742650330,-6346.28687922,0.00023409,2]
[378138505,1754742650339,-160.0,0.0002345,2]
[378138506,1754742650348,-500.0,0.00023456,2]
[378138507,1754742650357,-503.84332797,0.00023521,2]
[378138508,1754742650367,-250.0,0.00023521,2]
[378138509,1754742650376,-1000.0,0.00023521,2]
[378138510,1754742650386,-1000.0,0.00023521,2]
[378138511,1754742650395,-1200.0,0.00023539,2]
[378138512,1754742650405,-420.0,0.00023539,2]
[378138513,1754742650414,-420.0,0.00023539,2]
[378138514,1754742650424,-420.0,0.00023539,2]
[378138515,1754742650432,-460.0,0.0002356,2]
[378138516,1754742650442,-460.0,0.00023561,2]
[378138517,1754742650452,-466.99,0.00023561,2]
[378138518,1754742650461,-460.0,0.00023561,2]
[378138519,1754742650471,-470.77,0.00023561,2]
[378138520,1754742650480,-460.0,0.00023561,2]
[378138521,1754742650490,-460.0,0.00023561,2]
[378138522,1754742650499,-518.45,0.00023561,2]
[378138523,1754742650509,-460.0,0.00023561,2]
[378138524,1754742650519,-460.0,0.00023561,2]
[378138525,1754742650528,-704.44,0.00023561,2]
[378138526,1754742650537,-460.0,0.00023561,2]
[378138527,1754742650546,-460.0,0.00023561,2]
[378138528,1754742650557,-460.0,0.00023561,2]
[378138529,1754742650566,-560.29,0.00023561,2]
[378138530,1754742650575,-520.71,0.00023561,2]
[378138531,1754742650586,-460.0,0.00023561,2]
[378138532,1754742650595,-2664.05,0.00023561,2]
[378138533,1754742650604,-929.99,0.00023561,2]
[378138534,1754742650614,-460.0,0.00023561,2]
[378138535,1754742650623,-1074.79,0.00023561,2]
[378138536,1754742650632,-1736.44,0.00023561,2]
[378138537,1754742650642,-1176.97,0.00023561,2]
[378138538,1754742650652,-430.93164204,0.00023561,2]
[378138539,1754742650661,-460.0,0.00023561,2]
[378138540,1754742650670,-558.13,0.00023561,2]
[378138541,1754742650682,-785.66,0.00023561,2]
[378138542,1754742650693,-460.0,0.00023561,2]
[378138543,1754742650703,-1673.09,0.00023561,2]
[378138544,1754742650712,-460.0,0.00023561,2]
[378138545,1754742650721,-2240.9,0.00023561,2]
[378138546,1754742650731,-460.0,0.00023561,2]
[378138547,1754742650740,-546.1,0.00023561,2]
[378138548,1754742650750,-460.0,0.00023561,2]
[378138549,1754742650759,-460.0,0.00023561,2]
[378138550,1754742650769,-1151.83,0.00023561,2]
[378138551,1754742650779,-721.63,0.00023561,2]
[378138552,1754742650788,-460.0,0.00023561,2]